bitfinex-derivatives/quotes_ETHF0:USTF0_20250104
["timestamp","ask_amount","ask_price","bid_price","bid_amount"]
[1735992774609,2.1243,3605.4,3605.3,9.79843441]
[1735992776315,2.40175,3605.4,3605.3,11.94737562]
[1735992777509,2.1243,3605.4,3605.3,11.94737562]
[1735992777710,2.40175,3605.4,3605.3,11.94737562]
[1735992777913,2.40175,3605.4,3605.3,0.27746]
[1735992778417,2.1243,3605.4,3605.3,1.29333057]
[1735992779412,2.1243,3605.4,3605.3,7.7401542]
[1735992780420,2.40175,3605.4,3605.3,7.7401542]
[1735992780618,2.40175,3605.4,3605.3,6.52301515]
[1735992782116,2.1243,3605.4,3605.3,6.52301515]
[1735992782917,2.40175,3605.4,3605.3,6.52301515]
[1735992783116,2.1243,3605.4,3605.3,5.50714458]
[1735992783313,2.40175,3605.4,3605.3,7.65444458]
[1735992783816,2.1243,3605.4,3605.3,7.65444458]
[1735992786123,2.1243,3605.4,3605.3,26.77047478]
[1735992787019,2.1243,3605.4,3605.3,18.12080241]
[1735992789720,2.1243,3605.4,3605.3,19.13667298]
[1735992789928,2.2027,3605.6,3605.3,30.71419351]
[1735992790229,2.2027,3605.6,3605.5,1.29332057]
[1735992791519,2.2027,3605.6,3605.5,27.80145345]
[1735992792929,2.2027,3605.6,3605.5,16.98936298]
[1735992795734,0.27743,3605.8,3605.7,0.27743]
[1735992796327,5.34347057,3605.9,3605.7,0.27743]
[1735992796733,5.34347057,3605.9,3605.7,14.15152893]
[1735992797029,0.27743,3605.8,3605.7,14.15152893]
[1735992797636,5.34347057,3605.9,3605.8,0.27742]
[1735992797637,5.62089057,3605.9,3605.8,0.27742]
[1735992798131,2.238,3605.9,3605.8,0.27742]
[1735992798333,2.238,3605.9,3605.8,2.37182]
[1735992798533,2.238,3605.9,3605.8,4.42292]
[1735992799237,3.26631666,3606.2,3605.8,8.36917057]
[1735992799425,3.26631666,3606.2,3606.1,0.2774]
[1735992799631,4.3701,3606.3,3606.2,0.27739]
[1735992800032,2.1954,3606.3,3606.2,1.29326057]
[1735992800836,2.1954,3606.3,3606.2,25.48749537]
[1735992802038,2.1954,3606.3,3606.2,15.15724469]
[1735992803531,2.1954,3606.3,3606.2,6.52294515]
[1735992804033,2.1954,3606.3,3606.2,8.74434515]
[1735992805745,2.1954,3606.3,3606.2,15.21241848]
[1735992807248,2.1954,3606.3,3606.2,18.42021848]
[1735992813151,2.1954,3606.3,3606.2,11.95214515]
[1735992816350,2.1954,3606.3,3606.2,18.42021848]
[1735992817752,2.1954,3606.3,3606.2,11.95214515]
[1735992819059,2.1954,3606.3,3606.2,18.42021848]
[1735992820556,2.1954,3606.3,3606.2,11.95214515]
[1735992831365,2.1954,3606.3,3606.2,30.86913843]
[1735992834068,2.1954,3606.3,3606.2,22.23483889]
[1735992834657,2.1954,3606.3,3606.2,19.02703889]
[1735992834862,2.1954,3606.3,3606.2,22.23483889]
[1735992836261,0.09997039,3606.5,3606.4,0.27738]
[1735992836465,2.1747,3606.6,3606.5,0.27737]
[1735992838566,2.1747,3606.6,3606.5,5.50705458]
[1735992842662,2.1747,3606.6,3606.5,6.52292515]
[1735992843066,2.1747,3606.6,3606.5,13.00171753]
[1735992844366,2.1747,3606.6,3606.5,6.52292515]
[1735992844761,4.1279,3606.8,3606.7,0.27735]
[1735992844962,4.1279,3606.8,3606.7,1.29322057]
[1735992845562,4.1279,3606.8,3606.7,25.25101475]
[1735992846863,4.1279,3606.8,3606.7,16.62215881]
[1735992847970,4.40525,3606.8,3606.7,16.62215881]
[1735992848471,4.1279,3606.8,3606.7,16.62215881]
[1735992848875,4.40525,3606.8,3606.7,6.52290515]
[1735992850076,4.1279,3606.8,3606.7,6.52290515]
[1735992850265,4.1279,3606.8,3606.7,15.1633118]
[1735992850862,2.0953,3606.8,3606.7,15.1633118]
[1735992851063,3.26631666,3607.2,3607.1,0.27732]
[1735992851363,3.26631666,3607.2,3607.1,1.29319057]
[1735992851765,2.18189335,3607.2,3607.1,1.01587057]
[1735992851972,2.18189335,3607.2,3607.1,1.29319057]
[1735992852168,2.18189335,3607.2,3607.1,3.53409057]
[1735992852466,2.18189335,3607.2,3607.1,6.74189057]
[1735992852665,5.43186361,3607.8,3607.1,6.74189057]
[1735992852666,5.43186361,3607.8,3607.5,0.27729]
[1735992852865,5.43186361,3607.8,3607.7,4.50095057]
[1735992853064,4.18297361,3607.8,3607.7,4.50095057]
[1735992853459,6.53760172,3608.2,3608.1,0.27725]
[1735992853460,2.1793226,3608.2,3608.1,0.27725]
[1735992853667,3.2689839,3608.3,3608.1,4.22367057]
[1735992853862,3.2689839,3608.3,3608.2,0.27724]
[1735992854366,3.2689839,3608.3,3608.2,2.37385048]
[1735992854875,6.53760172,3609.2,3608.2,2.37385048]
[1735992854876,0.27715,3609.4,3609.0,0.27717]
[1735992855474,0.27715,3609.4,3609.1,0.27716]
[1735992855676,0.27714,3609.5,3609.2,0.27716]
[1735992855870,0.27714,3609.5,3609.1,2.09661048]
[1735992855871,2.1715,3609.6,3609.1,2.09661048]
[1735992856072,2.44864,3609.6,3609.2,0.27716]
[1735992856369,2.1715,3609.6,3609.5,0.27714]
[1735992857171,2.1715,3609.6,3609.2,0.27716]
[1735992857371,2.1715,3609.6,3609.3,0.27715]
[1735992857574,2.1715,3609.6,3609.1,9.59780472]
[1735992857575,2.1715,3609.6,3609.4,4.29339424]
[1735992857769,2.1715,3609.6,3609.4,4.57054424]
[1735992858076,3.92181271,3609.7,3609.4,4.57054424]
[1735992858569,3.92181271,3609.7,3609.5,0.27713]
[1735992858970,3.92181271,3609.7,3609.6,0.27713]
[1735992859174,3.92181271,3609.7,3609.5,0.27713]
[1735992860070,3.92181271,3609.7,3609.6,0.27713]
[1735992860867,3.92181271,3609.7,3609.4,2.09661048]
[1735992861169,3.92181271,3609.7,3609.5,0.27714]
[1735992861363,3.92181271,3609.7,3609.4,2.37375048]
[1735992861569,3.92181271,3609.7,3609.4,2.09661048]
[1735992861770,0.27714,3609.5,3609.4,2.09661048]
[1735992863874,0.27714,3609.5,3609.1,3.48497]
[1735992863875,0.27718,3609.1,3608.8,2.37380048]
[1735992864074,3.2078,3609.6,3608.8,2.37380048]
[1735992864075,0.27718,3609.0,3608.8,2.37380048]
[1735992864271,3.92181271,3609.7,3608.8,2.37380048]
[1735992864479,0.27718,3609.0,3608.8,2.37380048]
[1735992864675,0.27718,3609.0,3608.8,2.09661048]
[1735992864867,3.2078,3609.4,3608.5,4.29339424]
[1735992865069,2.1738,3608.9,3608.6,2.09661048]
[1735992865270,0.2772,3608.7,3608.6,2.09661048]
[1735992866076,3.2078,3609.4,3609.0,0.27717]
[1735992866274,3.2078,3609.4,3609.0,2.09661048]
[1735992866576,0.27717,3609.1,3608.8,0.27719]
[1735992867369,0.27718,3609.0,3608.8,0.27719]
[1735992867979,3.2078,3609.4,3608.7,2.09661048]
[1735992868181,0.27718,3609.0,3608.8,0.27719]
[1735992869774,3.2078,3609.4,3608.7,2.09661048]
[1735992869972,0.27716,3609.3,3609.0,0.27717]
[1735992870476,0.27717,3609.1,3608.9,0.27718]
[1735992871080,2.1402,3609.0,3608.9,0.27718]
[1735992874184,2.41738,3609.0,3608.8,0.27719]
[1735992874379,3.2078,3609.4,3608.7,2.09661048]
[1735992874679,0.27716,3609.3,3609.1,0.27717]
[1735992875182,3.2078,3609.4,3609.0,2.37378048]
[1735992875383,0.27717,3609.1,3609.0,2.09661048]
[1735992875576,0.27717,3609.1,3608.9,0.27718]
[1735992875776,2.1665,3609.7,3609.0,2.09661048]
[1735992875972,3.2078,3609.4,3609.0,2.09661048]
[1735992876177,0.27717,3609.1,3608.9,0.27718]
[1735992876385,0.27717,3609.1,3609.0,0.27718]
[1735992876984,3.2078,3609.4,3608.7,5.30441048]
[1735992877284,3.2078,3609.4,3609.1,0.27717]
[1735992877877,3.2078,3609.4,3608.7,2.09661048]
[1735992878084,0.27716,3609.2,3609.1,0.27716]
[1735992878880,3.2078,3609.4,3609.1,0.27716]
[1735992879183,0.27716,3609.2,3609.1,0.27716]
[1735992880081,3.2078,3609.4,3608.7,2.09661048]
[1735992880285,2.33127,3609.1,3609.0,0.27718]
[1735992880888,2.0541,3609.1,3609.0,0.27718]
[1735992882488,2.33127,3609.1,3609.0,0.27718]
[1735992883093,2.0541,3609.1,3609.0,0.27718]
[1735992884702,2.33127,3609.1,3609.0,0.27718]
[1735992886198,2.0541,3609.1,3609.0,0.27718]
[1735992886500,2.33127,3609.1,3609.0,0.27718]
[1735992887201,2.0541,3609.1,3609.0,0.27718]
[1735992887804,2.33128,3609.1,3608.7,2.09661048]
[1735992888003,2.46428,3609.0,3608.9,0.27718]
[1735992888794,4.2425,3609.0,3608.9,0.27718]
[1735992892401,4.2425,3609.0,3608.9,1.29092249]
[1735992892795,7.4503,3609.0,3608.7,4.29339424]
[1735992893105,7.72748,3609.0,3608.9,1.01374249]
[1735992894200,0.27718,3608.9,3608.7,1.29093249]
[1735992894401,0.27718,3608.9,3608.8,0.27719]
[1735992895806,0.27718,3608.9,3608.8,4.57058424]
[1735992897110,0.27718,3608.9,3608.8,12.27873061]
[1735992898111,0.27718,3608.9,3608.8,5.83863924]
[1735992898413,4.24429249,3609.0,3608.8,5.56144924]
[1735992898614,0.27718,3608.9,3608.8,5.83863924]
[1735992899313,0.27718,3608.9,3608.8,5.56144924]
[1735992899701,0.27718,3608.9,3608.8,5.83863924]
[1735992901013,0.27718,3608.9,3608.8,14.42542773]
[1735992901216,4.24429249,3609.0,3608.8,14.14823773]
[1735992901413,4.52147249,3609.0,3608.9,0.27718]
[1735992901914,0.27718,3608.9,3608.8,14.42542773]
[1735992902106,4.24429249,3609.0,3608.9,0.27718]
[1735992902107,0.00179249,3609.0,3608.9,0.27718]
[1735992902414,0.00179249,3609.0,3608.9,14.42541773]
[1735992903514,0.00179249,3609.0,3608.9,16.65511773]
[1735992903911,0.00179249,3609.0,3608.9,19.20270605]
[1735992904609,0.00179249,3609.0,3608.9,22.41050605]
[1735992905516,4.5428,3609.4,3609.3,0.27715]
[1735992906110,4.81995,3609.4,3609.3,0.27715]
[1735992906319,4.5428,3609.4,3609.3,0.27715]
[1735992906910,4.81995,3609.4,3609.3,0.27715]
[1735992907114,0.27715,3609.3,3609.2,0.27716]
[1735992907313,0.27715,3609.3,3609.2,11.0489753]
[1735992908007,3.48495,3609.3,3609.2,10.7718153]
[1735992908412,3.48495,3609.3,3609.2,12.03573779]
[1735992908413,3.2078,3609.3,3609.2,12.03573779]
[1735992908711,3.48495,3609.3,3609.2,12.03573779]
[1735992910616,3.48495,3609.3,3609.2,4.31211848]
[1735992911816,0.27716,3609.2,3609.1,6.46627051]
[1735992912615,0.27716,3609.2,3609.1,1.16237051]
[1735992913019,0.27716,3609.2,3609.1,6.73287627]
[1735992913820,0.27718,3609.0,3608.9,8.56417029]
[1735992914016,0.27718,3609.0,3608.9,5.14607029]
[1735992914218,46.07718,3609.0,3608.6,5.14607029]
[1735992914417,3.485,3608.7,3608.6,5.14607029]
[1735992914914,5.7575,3608.7,3608.6,5.14607029]
[1735992915719,8.74974186,3608.7,3608.3,4.31223919]
[1735992915919,3.26944186,3608.7,3608.6,0.27721]
[1735992916418,6.9099691,3608.9,3608.2,4.27232233]
[1735992916619,0.27719,3608.8,3608.7,0.27719]
[1735992916818,2.54968,3608.9,3608.8,2.1331]
[1735992917216,4.67268,3608.9,3608.8,2.1331]
[1735992917924,4.67268,3608.9,3608.8,6.44160736]
[1735992919333,4.67268,3608.9,3608.8,2.1331]
[1735992920130,2.54968,3608.9,3608.8,2.41029]
[1735992920722,1.084,3609.0,3608.9,0.27718]
[1735992920723,1.36118,3609.0,3608.9,0.27718]
[1735992921029,0.27718,3609.0,3608.9,0.27718]
[1735992922827,0.27718,3609.0,3608.8,4.2307]
[1735992922828,3.3048,3609.2,3608.8,4.2307]
[1735992923021,0.27718,3609.0,3608.9,0.27718]
[1735992924227,3.3048,3609.2,3608.8,4.2307]
[1735992924429,0.27717,3609.1,3608.8,4.2307]
[1735992924619,0.27717,3609.1,3609.0,0.27718]
[1735992926024,0.27717,3609.1,3608.9,0.27718]
[1735992926223,0.27718,3609.0,3608.9,0.27718]
[1735992926727,0.27718,3608.9,3608.8,2.1331]
[1735992926935,0.27718,3608.9,3608.6,10.7718153]
[1735992926936,5.30502233,3609.1,3608.6,10.7718153]
[1735992927235,5.58222233,3608.7,3608.6,10.7718153]
[1735992927429,0.27721,3608.6,3608.5,10.7718153]
[1735992927727,43.25771,3608.6,3608.5,10.7718153]
[1735992928431,2.45771,3608.6,3608.5,10.7718153]
[1735992929027,0.27725,3608.1,3608.0,4.30927606]
[1735992930131,0.27725,3608.0,3607.9,4.30927606]
[1735992930333,4.47077233,3608.0,3607.9,4.30927606]
[1735992931831,4.47077233,3608.0,3607.5,6.51817606]
[1735992931832,0.27728,3607.6,3607.5,6.51817606]
[1735992933130,1.36128,3607.6,3607.5,2.2089]
[1735992936033,0.69313,3608.1,3607.5,2.2089]
[1735992936034,3.2078,3608.3,3607.5,4.30612233]
[1735992936339,0.27725,3608.1,3607.9,0.27726]
[1735992936538,0.27724,3608.2,3608.1,0.27725]
[1735992936738,3.2078,3608.3,3608.2,0.27724]
[1735992936939,3.26944186,3608.8,3608.4,0.27722]
[1735992936940,1.084,3608.5,3608.4,0.27722]
[1735992937336,0.27722,3608.5,3608.4,0.27722]
[1735992937535,0.27722,3608.5,3608.0,2.1803]
[1735992937536,0.27722,3608.5,3608.3,0.27723]
[1735992937934,0.27722,3608.4,3608.3,0.27723]
[1735992938130,0.27722,3608.4,3608.2,0.27723]
[1735992938537,0.27722,3608.5,3608.3,0.27723]
[1735992939336,1.084,3608.8,3608.3,3.2078]
[1735992939533,1.084,3608.8,3608.4,0.27722]
[1735992939534,0.27721,3608.6,3608.4,0.27722]
[1735992940135,1.084,3608.8,3608.3,3.2078]
[1735992940336,0.2772,3608.7,3608.5,0.27721]
[1735992940547,1.084,3608.8,3608.5,0.27721]
[1735992940744,0.2772,3608.7,3608.5,0.27721]
[1735992943437,0.27721,3608.6,3608.5,0.27721]
[1735992945150,1.084,3608.8,3608.3,3.2078]
[1735992945350,0.27721,3608.6,3608.4,0.27722]
[1735992945647,0.27722,3608.4,3608.3,7.51707606]
[1735992946649,0.27722,3608.4,3608.3,7.79430606]
[1735992946947,0.27722,3608.4,3608.3,3.48503]
[1735992947845,1.084,3608.8,3608.3,3.2078]
[1735992948150,0.27722,3608.5,3608.4,0.27722]
[1735992948346,1.084,3608.8,3608.3,3.2078]
[1735992948550,0.27722,3608.4,3608.3,3.48503]
[1735992949346,0.27722,3608.4,3608.3,0.27723]
[1735992949545,0.27722,3608.4,3608.3,3.48503]
[1735992951149,0.27722,3608.4,3608.3,7.79430606]
[1735992952049,1.084,3608.8,3608.3,3.2078]
[1735992952256,0.27722,3608.5,3608.4,0.27722]
[1735992954660,0.27722,3608.5,3608.4,4.58649606]
[1735992957269,0.27721,3608.6,3608.5,0.27721]
[1735992957761,1.3612,3608.8,3608.7,0.2772]
[1735992959067,0.2772,3608.8,3608.7,0.2772]
[1735992960272,2.2273,3609.0,3608.9,0.27718]
[1735992960666,0.27717,3609.2,3609.1,0.27716]
[1735992961166,0.27716,3609.3,3609.2,0.27716]
[1735992961667,0.27716,3609.3,3609.2,2.50486]
[1735992962369,2.45275,3609.4,3609.3,0.27715]
[1735992963264,2.1756,3609.4,3609.3,0.27715]
[1735992963666,2.45275,3609.4,3609.3,0.27715]
[1735992964164,2.1756,3609.4,3609.3,0.27715]
[1735992965068,2.45275,3609.4,3609.3,0.27715]
[1735992967467,1.084,3609.8,3609.2,2.2277]
[1735992967974,0.27713,3609.6,3609.5,0.27713]
[1735992970981,4.2483,3609.9,3609.2,6.53697606]
[1735992971181,4.2483,3609.9,3609.7,0.27712]
[1735992971182,4.52541,3609.9,3609.7,0.27712]
[1735992971384,4.52541,3609.9,3609.8,2.2269]
[1735992973096,2.1292,3609.9,3609.8,2.2269]
[1735992973390,2.1292,3609.9,3609.8,2.50402]
[1735992974782,2.40631,3609.9,3609.8,2.2269]
[1735992976182,2.1292,3609.9,3609.5,3.2078]
[1735992976384,0.27713,3609.6,3609.5,3.2078]
[1735992976788,2.40673,3609.6,3609.5,3.2078]
[1735992977386,0.27716,3609.3,3609.2,0.27716]
[1735992978089,0.27716,3609.3,3609.1,2.2636]
[1735992978590,2.1296,3609.6,3609.1,2.2636]
[1735992978889,0.27716,3609.2,3609.1,2.54077]
[1735992979089,0.27716,3609.3,3609.2,0.27716]
[1735992979290,2.1296,3609.6,3609.1,2.2636]
[1735992979291,0.27716,3609.2,3609.1,2.2636]
[1735992980985,5.03964,3609.6,3609.1,2.2636]
[1735992981190,0.27716,3609.2,3609.1,6.57287606]
[1735992981988,4.3468,3609.6,3609.1,6.57287606]
[1735992982189,0.27716,3609.2,3609.1,6.85004606]
[1735992983689,0.27716,3609.2,3609.1,6.57287606]
[1735992983991,0.27716,3609.2,3609.1,6.85004606]
[1735992984697,0.27716,3609.2,3609.1,6.57287606]
[1735992985087,0.27716,3609.2,3609.1,6.85004606]
[1735992985490,0.27716,3609.2,3609.1,6.57287606]
[1735992985800,0.27716,3609.2,3609.1,6.85004606]
[1735992987001,0.27716,3609.3,3609.2,0.27716]
[1735992988301,0.27716,3609.3,3609.2,1.29088621]
[1735992988693,5.36052621,3609.6,3609.2,5.32300227]
[1735992988899,0.27714,3609.5,3609.4,0.27714]
[1735992989492,2.40673,3609.6,3609.5,0.27714]
[1735992990199,2.1296,3609.6,3609.5,0.27714]
[1735992990498,2.40673,3609.6,3609.5,0.27714]
[1735992990700,1.01372621,3609.8,3609.4,1.01372621]
[1735992990896,1.29084621,3609.8,3609.7,0.27712]
[1735992991098,1.29084621,3609.8,3609.7,3.48492]
[1735992991402,1.01372621,3609.8,3609.7,3.48492]
[1735992991601,1.29084621,3609.8,3609.7,3.48492]
[1735992991800,1.29084621,3609.8,3609.7,5.63682]
[1735992992198,0.27712,3609.8,3609.7,2.42902]
[1735992993299,0.27712,3609.8,3609.7,2.1519]
[1735992993711,0.27712,3609.7,3609.6,4.30927606]
[1735992994300,0.27713,3609.6,3609.5,4.58640606]
[1735992994500,4.2851,3609.9,3609.5,4.30927606]
[1735992994700,0.27713,3609.7,3609.6,0.27713]
[1735992995101,0.27713,3609.6,3609.5,4.58641606]
[1735992995507,0.27713,3609.6,3609.5,0.27714]
[1735992996305,0.27712,3609.7,3609.5,0.27714]
[1735992996504,0.27712,3609.7,3609.6,0.27712]
[1735992999508,0.27713,3609.6,3609.5,4.58640606]
[1735993000009,5.3691,3609.9,3609.4,11.71230094]
[1735993000211,0.27713,3609.7,3609.6,0.27713]
[1735993002214,0.27712,3609.8,3609.7,0.27712]
[1735993002604,4.2851,3609.9,3609.7,0.27712]
[1735993003000,4.56221,3609.9,3609.7,0.27712]
[1735993003400,4.56221,3609.9,3609.6,11.57971704]
[1735993003605,4.2851,3609.9,3609.6,11.57971704]
[1735993003807,0.27712,3609.7,3609.6,11.85684704]
[1735993004114,4.2851,3609.9,3609.6,11.85684704]
[1735993004313,0.27712,3609.7,3609.6,11.85684704]
[1735993004507,0.27712,3609.7,3609.6,0.27713]
[1735993005609,4.56221,3609.9,3609.8,0.27712]
[1735993006308,0.27712,3609.8,3609.7,0.27712]
[1735993007714,4.56221,3609.9,3609.8,0.27712]
[1735993009713,4.56221,3609.9,3609.8,5.42685773]
[1735993010903,4.56221,3609.9,3609.8,11.88631499]
[1735993014318,5.57577931,3609.9,3609.8,11.88631499]
[1735993015011,4.2851,3609.9,3609.8,11.88631499]
[1735993015212,4.2851,3609.9,3609.8,15.09411499]
[1735993015408,40.79272132,3610.0,3609.8,14.81699499]
[1735993015614,35.41172132,3610.0,3609.9,1.29067931]
[1735993016411,34.81079132,3610.0,3609.9,7.37225213]
[1735993016609,33.57954132,3610.0,3609.9,17.81870546]
[1735993016814,29.32145132,3610.0,3609.9,17.81870546]
[1735993017111,23.38966132,3610.0,3609.9,17.81870546]
[1735993017308,7.95204044,3610.0,3609.9,22.81870546]
[1735993017512,2.48201186,3610.8,3610.7,0.27705]
[1735993017811,3.26574312,3611.5,3611.0,0.69256]
[1735993018112,3.26574312,3611.5,3611.4,3.48479]
[1735993018917,2.1482,3611.7,3611.4,13.94440251]
[1735993019110,2.77532504,3611.9,3611.4,13.94440251]
[1735993019321,0.00492504,3611.9,3611.8,3.48476]
[1735993019713,0.00492504,3611.9,3611.8,3.2078]
[1735993019920,3.05227504,3611.9,3611.8,3.2078]
[1735993020313,3.05227504,3611.9,3611.8,14.78351683]
[1735993021016,2.77532504,3611.9,3611.8,15.06047683]
[1735993021620,2.77532504,3611.9,3611.8,3.48476]
[1735993023118,2.77532504,3611.9,3611.8,3.2078]
[1735993023313,0.27696,3611.8,3611.7,4.28050449]
[1735993023621,5.15546,3611.8,3611.7,4.28050449]
[1735993023818,0.27698,3611.6,3611.4,0.27699]
[1735993024121,0.27698,3611.6,3611.1,7.48830449]
[1735993024122,2.7704,3611.4,3611.3,0.277]
[1735993024922,3.04739,3611.4,3611.2,0.277]
[1735993025118,2.7704,3611.4,3611.2,0.277]
[1735993025319,3.04739,3611.4,3611.2,0.277]
[1735993026024,2.7704,3611.4,3611.0,8.59674662]
[1735993026225,2.7704,3611.3,3611.2,0.277]
[1735993028024,0.27698,3611.6,3611.4,0.27699]
[1735993028419,2.7704,3611.5,3611.4,0.27699]
[1735993028728,3.04739,3611.5,3611.2,0.27701]
[1735993028919,2.7704,3611.3,3611.2,0.27701]
[1735993029121,2.7704,3611.3,3611.1,3.2078]
[1735993029418,2.7704,3611.2,3611.1,3.48481]
[1735993029615,2.7704,3611.3,3611.1,3.2078]
[1735993029826,2.7704,3611.3,3611.2,0.27701]
[1735993030427,2.223,3611.7,3611.2,0.27701]
[1735993030428,0.27699,3611.4,3611.2,0.27701]
[1735993030622,0.27699,3611.5,3611.3,0.277]
[1735993031320,0.27699,3611.5,3611.4,0.27699]
[1735993032426,0.27698,3611.6,3611.5,0.27698]
[1735993032727,2.49997,3611.7,3611.5,0.27698]
[1735993032924,2.223,3611.7,3611.6,0.27698]
[1735993033629,2.1081,3611.8,3611.6,2.09514213]
[1735993033923,2.1081,3611.8,3611.7,0.27697]
[1735993034324,4.2222,3611.8,3611.7,0.27697]
[1735993040033,3.2078,3613.4,3611.7,8.21314213]
[1735993040234,6.6888,3613.7,3613.3,0.27685]
[1735993040536,6.6888,3613.7,3613.6,0.27682]
[1735993041033,4.4602,3613.7,3613.6,0.27682]
[1735993041333,4.3602791,3613.8,3613.7,0.27682]
[1735993041536,5.42154574,3614.1,3613.6,3.2078]
[1735993041537,4.69506,3614.4,3614.1,0.27679]
[1735993041732,4.4183,3614.4,3614.1,0.27679]
[1735993042829,0.0019365,3614.1,3614.0,0.27679]
[1735993043032,0.0019365,3614.1,3613.8,2.09514213]
[1735993043329,0.0019365,3614.1,3614.0,0.27679]
[1735993043922,4.69507,3614.4,3614.0,0.27679]
[1735993044535,0.27678,3614.2,3613.9,0.2768]
[1735993044735,4.4183,3614.4,3613.8,2.09514213]
[1735993045237,0.27679,3614.1,3613.8,2.37194213]
[1735993045423,0.27678,3614.2,3613.8,2.09514213]
[1735993045739,0.27678,3614.2,3614.1,2.09514213]
[1735993046737,0.27685,3613.3,3613.2,4.2952984]
[1735993046941,3.48465,3613.3,3613.2,4.2952984]
[1735993047227,3.2078,3613.3,3613.2,4.5721484]
[1735993047432,3.2078,3613.8,3613.2,4.2952984]
[1735993047633,3.2078,3613.8,3613.6,2.09514213]
[1735993048130,3.48461,3613.8,3613.6,2.09514213]
[1735993048635,0.27682,3613.7,3613.6,2.09514213]
[1735993050142,2.46742,3613.7,3613.6,2.09514213]
[1735993050636,0.27682,3613.6,3613.4,0.27684]
[1735993051636,0.27682,3613.7,3613.5,0.27683]
[1735993052138,2.1906,3614.2,3613.4,2.09514213]
[1735993052338,2.1906,3614.2,3613.8,2.09514213]
[1735993052540,0.27679,3614.0,3613.8,2.37195213]
[1735993052743,0.27679,3614.1,3613.9,0.2768]
[1735993053241,2.46738,3614.2,3614.0,0.27679]
[1735993053538,2.46738,3614.2,3613.3,7.50293522]
[1735993053539,3.2078,3614.3,3614.1,2.09514213]
[1735993053735,3.2078,3614.8,3614.1,2.09514213]
[1735993053939,3.2078,3614.8,3614.5,2.37189213]
[1735993053940,3.48454,3614.8,3614.5,2.37189213]
[1735993054334,3.2078,3614.8,3614.5,2.09514213]
[1735993054736,3.2078,3614.8,3614.7,0.27674]
[1735993055638,0.27678,3614.3,3614.0,0.27679]
[1735993055839,0.27675,3614.7,3614.5,0.27675]
[1735993056046,5.4707,3614.8,3614.0,5.30294213]
[1735993056338,5.4707,3614.8,3614.3,2.09514213]
[1735993056543,3.2078,3614.8,3614.6,2.09514213]
[1735993056740,4.3602791,3617.6,3615.1,0.27671]
[1735993056741,3.2078,3615.2,3615.1,0.27671]
[1735993056941,0.27668,3615.6,3615.1,2.09514213]
[1735993057136,0.27667,3615.7,3615.4,0.27668]
[1735993057339,3.2078,3616.3,3615.1,2.09514213]
[1735993057531,2.0926,3615.6,3615.1,2.09514213]
[1735993057736,2.0926,3615.6,3615.3,0.27669]
[1735993057938,2.0926,3615.6,3615.2,0.2767]
[1735993058239,0.27671,3615.2,3615.1,2.09514213]
[1735993058542,2.1492,3615.5,3614.9,3.2078]
[1735993058840,2.0926,3615.6,3615.1,2.09514213]
[1735993059048,2.0926,3615.6,3615.3,0.27669]
[1735993059239,2.36927,3615.6,3615.1,2.09514213]
[1735993059438,2.36927,3615.6,3615.3,0.27669]
[1735993059738,2.0926,3615.6,3615.5,0.27668]
[1735993059934,0.27665,3615.9,3615.4,2.09514213]
[1735993060248,4.4471,3616.0,3615.8,0.27665]
[1735993060433,4.4471,3616.0,3615.4,2.09514213]
[1735993060638,4.4471,3616.0,3615.8,0.27665]
[1735993060847,4.4471,3616.0,3615.4,2.09514213]
[1735993061142,4.4471,3616.0,3615.9,0.27665]
[1735993061443,2.2443,3616.2,3615.7,5.30294213]
[1735993061844,0.27664,3616.1,3615.8,0.27666]
[1735993062042,2.52093,3616.2,3615.7,2.09514213]
[1735993062246,2.52093,3616.2,3615.9,0.27664]
[1735993062442,2.2443,3616.2,3616.0,0.27664]
[1735993062641,2.52093,3616.2,3615.9,0.27664]
[1735993062838,2.52093,3616.2,3616.0,0.27664]
[1735993063043,2.52093,3616.2,3615.7,5.30294213]
[1735993063044,2.2443,3616.2,3615.7,5.30294213]
[1735993063243,3.2078,3618.2,3616.3,0.499]
[1735993063540,0.27651,3617.7,3617.4,2.09514213]
[1735993063749,6.6101,3618.1,3617.3,3.2078]
[1735993063941,5.30294213,3617.7,3616.9,3.2078]
[1735993064140,0.27655,3617.2,3616.9,3.2078]
[1735993064356,2.3017,3617.1,3616.3,3.2078]
[1735993064537,2.3215,3617.0,3615.9,5.30294213]
[1735993064743,0.27661,3616.4,3615.3,3.48449]
[1735993064938,0.27661,3616.4,3615.3,3.2078]
[1735993064939,1.117,3616.4,3615.3,3.2078]
[1735993065143,1.117,3616.4,3615.6,4.28050449]
[1735993065347,0.27666,3615.7,3615.6,4.28050449]
[1735993066748,6.8472,3616.0,3615.3,3.2078]
[1735993066939,3.2078,3615.7,3614.9,5.30294213]
[1735993067141,3.2078,3615.7,3614.9,3.2078]
[1735993067345,5.30294213,3615.2,3614.1,7.48830449]
[1735993067545,0.27677,3614.3,3614.1,4.28050449]
[1735993067739,2.1572,3614.2,3614.1,4.28050449]
[1735993067944,1.162,3614.7,3614.2,2.09514213]
[1735993068551,1.162,3614.7,3614.1,3.2078]
[1735993068748,0.27675,3614.6,3613.6,5.57976213]
[1735993069246,3.25714213,3614.7,3613.6,3.2078]
[1735993069247,0.2768,3614.0,3613.6,3.2078]
[1735993069452,2.434,3613.9,3613.6,3.2078]
[1735993070048,2.1572,3613.9,3613.6,3.2078]
[1735993070453,2.1572,3613.9,3613.1,3.2078]
[1735993070650,0.27684,3613.5,3613.1,3.2078]
[1735993070845,0.27681,3613.8,3613.2,0.27685]
[1735993071046,2.1572,3613.9,3613.3,2.09514213]
[1735993071242,2.1572,3613.9,3613.1,3.2078]
[1735993071446,2.09514213,3613.6,3612.5,2.09514213]
[1735993071743,2.1572,3613.9,3613.5,3.2078]
[1735993071946,2.1954,3614.2,3613.7,2.09514213]
[1735993072150,2.2233,3614.5,3614.2,0.27678]